Cogmind - Beta 10.2 @@@ ROGUE MODE // 2021.06.05 @ 19:13:32 Player: UlyssesB Result: Destroyed by G-47 Trooper with Particle Gun Performance ------------- Evolutions (0) 0 Regions Visited (1) 200 Robots Destroyed (9) 45 Value Destroyed (247) 247 Prototype IDs (0) 0 Alien Tech Used (0) 0 Bonus (0) 0 TOTAL SCORE: 492 Bonus ------- None Cogmind --------- Core Integrity 0/250 Matter 192/300 Energy 100/100 System Corruption 0% Temperature Cool (15) Movement Treading (160) Location -10/Materials Parts ------- > --- POWER (1) -------- (None) > --- PROPULSION (2) --- Light Treads > --- UTILITY (2) ------ Improved Heat Sink Small Storage Unit > --- WEAPON (2) ------- Light Assault Rifle > --- INVENTORY (6) ---- Ion Engine Compact Wheel Compact Wheel Peak State ------------ > --- POWER ------------ Ion Engine > --- PROPULSION ------- Light Treads Light Treads > --- UTILITY ---------- Improved Heat Sink Small Storage Unit > --- WEAPON ----------- Assault Rifle Assault Rifle > --- INVENTORY -------- Ion Engine Compact Wheel Compact Wheel Light Assault Rifle [Rating: 9] Favorites ----------- Power Ion Engine Engine Ion Engine Propulsion Aluminum Leg Treads Light Treads Leg Aluminum Leg Utility Small Storage Unit Device Improved Heat Sink Storage Small Storage Unit Weapon Assault Rifle Ballistic Gun Assault Rifle Build | -11 -10 ------- Run | Scr Mat Slots Evolved . | . . Power . | . . Propulsion . | . . Utility . | . . Weapon . | . . Parts Attached 5 | . 5 Power 1 | . 1 Engine 1 | . 1 Core . | . . Reactor . | . . Propulsion 2 | . 2 Treads 2 | . 2 Leg . | . . Wheel . | . . Hover . | . . Flight . | . . Utility 1 | . 1 Device 1 | . 1 Storage . | . . Processor . | . . Hackware . | . . Protection . | . . Artifact . | . . Weapon 1 | . 1 Energy Gun . | . . Energy Cannon . | . . Ballistic Gun 1 | . 1 Ballistic Cannon . | . . Launcher . | . . Special Weapon . | . . Impact Weapon . | . . Slashing Weapon . | . . Piercing Weapon . | . . Special Melee Weapon . | . . Unidentified Prototypes . | . . Parts Lost 6 | . 6 Power 1 | . 1 Propulsion 3 | . 3 Utility . | . . Weapon 2 | . 2 Highest Loss Streak 2 | . 2 Average Slot Usage (%) 85 | . 85 Engine 13 | . 13 Treads 11 | . 11 Leg 14 | . 14 Device 5 | . 5 Storage 14 | . 14 Ballistic Gun 25 | . 25 Naked Turns . | . . Heaviest Build 14 | 13 14 Greatest Support 40 | 20 40 Greatest Overweight (x) . | . . Average Overweight (x) . | . . Largest Inventory Capacity 6 | . 6 Average Capacity 6 | . 6 Most Carried 6 | . 6 Average Carried 4 | . 4 Final Capacity 6 | 6 6 Final Carried 6 | 6 3 Class Distribution -------------------- 100% | Mutant Dominant Class ---------------- Mutant | -10/Materials Resources | -11 -10 ----------- Run | Scr Mat Matter Collected 328 | 152 176 Remotely . | . . Salvage Created 304 | . 304 Parts 24 | . 24 Haulers Intercepted . | . . Recyclers Shooed 1 | . 1 Parts Field Recycled . | . . Retrieved Matter . | . . Parts Self-Destructed . | . . Prevented . | . . Kills | -11 -10 ------- Run | Scr Mat Combat Hostiles Destroyed 9 | . 9 Guns 9 | . 9 Classes Destroyed 2 | . 2 Swarmer 3 | . 3 Grunt 6 | . 6 Best Kill Streak 4 | . 4 Combat Bots Only 4 | . 4 Max Kills in Single Turn 1 | . 1 Gunslinging . | . . Exploded . | . . Melee . | . . Uniques/NPCs Destroyed . | . . Combat | -11 -10 -------- Run | Scr Mat Damage Taken 1132 | . 1132 Core 256 | . 256 Absorbed by Shields . | . . Core Remaining (%) 100 | 100 . Volleys Fired 54 | . 54 Largest 2 | . 2 Hottest 40 | . 40 Shots Fired 93 | . 93 Gun 93 | . 93 Cannon . | . . Launcher . | . . Special . | . . Kinetic 93 | . 93 Thermal . | . . Explosive . | . . Electromagnetic . | . . Robot Hit Streak 14 | . 14 Robot Miss Streak 3 | . 3 Penetration Max . | . . Secondary Targets 2 | . 2 Max Gunslinging Chain 1 | . 1 Shots Hit Robots 70 | . 70 Core Hits 15 | . 15 Critical Hits 1 | . 1 Critical Kills 1 | . 1 Critical Parts Destroyed . | . . Melee Attacks . | . . Impact . | . . Slashing . | . . Piercing . | . . Sneak Attacks . | . . Combat Hostiles . | . . Follow-up Attacks . | . . Damage Inflicted 876 | . 876 Guns 862 | . 862 Cannons . | . . Explosions . | . . Melee . | . . Ramming 14 | . 14 Kinetic 862 | . 862 Thermal . | . . Explosive . | . . Electromagnetic . | . . Impact . | . . Slashing . | . . Piercing . | . . Highest Corruption . | . . Average Corruption . | . . Corruption Purged . | . . Overload Shots . | . . Overflow Damage . | . . Projectiles . | . . Explosions . | . . Melee . | . . Knockbacks . | . . Impact . | . . Kinetic . | . . Secondary . | . . Self-Inflicted Damage . | . . Shots . | . . Rammed 10 | . 10 Targets Rammed 10 | . 10 Kicked . | . . Crushed . | . . Highest Temperature 2 | . 2 Average Temperature 2 | . 2 Received Heat Transfer 501 | . 501 Siege Activations . | . . Robots Corrupted . | . . Combat Hostiles . | . . Parts Fried . | . . Impact Corruptions . | . . Robots Melted . | . . Combat Hostiles . | . . Parts Melted . | . . Heat Transferred . | . . Parts Sabotaged . | . . Parts Stolen . | . . Parts Stripped . | . . Power Chain Reactions . | . . Missiles Intercepted . | . . Alert | -11 -10 ------- Run | Scr Mat Peak Influence 224 | . 224 Initial . | . . Average 137 | . 137 Maximum Alert Level 1 | . 1 Low Security (%) 75 | . 75 Level 1 24 | . 24 Level 2 . | . . Level 3 . | . . Level 4 . | . . Level 5 . | . . High Security . | . . Max Security . | . . Squads Dispatched 3 | . 3 Investigation 1 | . 1 Extermination . | . . Reinforcement 2 | . 2 Assault . | . . Garrison . | . . Intercept . | . . Construction Impeded . | . . Haulers Reinforced . | . . Stealth | -11 -10 --------- Run | Scr Mat Distress Signals 2 | . 2 Communications Jammed . | . . Distress Signals . | . . Times Spotted 14 | . 14 Peak Tracking Total 6 | . 6 Tactical Retreats . | . . Traps | -11 -10 ------- Run | Scr Mat Traps Triggered 1 | . 1 Indirectly . | . . Trap Hack Attempts . | . . Triggered . | . . Disarmed . | . . Reprogrammed . | . . Reused . | . . Traps Extracted . | . . Installed . | . . Triggered . | . . Machines | -11 -10 ---------- Run | Scr Mat Machines Disabled . | . . Max in Single Turn . | . . Machines Sabotaged . | . . Garrisons Compromised . | . . Overloaded Fab Kills . | . . Fab Network Shutdowns . | . . Hacking | -11 -10 --------- Run | Scr Mat Machines Accessed 1 | . 1 Terminals 1 | . 1 Fabricators . | . . Repair Stations . | . . Recycling Units . | . . Scanalyzers . | . . Garrison Access . | . . Total Hacks 4 | . 4 Successful 3 | . 3 Failed 1 | . 1 Catastrophic . | . . Database Lockouts . | . . Manual . | . . Terminals 4 | . 4 Fabricators . | . . Repair Stations . | . . Recycling Units . | . . Scanalyzers . | . . Garrison Access . | . . Terminal Hacks 3 | . 3 Transport Status 1 | . 1 Hauler Manifests 1 | . 1 Zone Layout 1 | . 1 Fabricator Hacks . | . . Repair Station Hacks . | . . Recycling Unit Hacks . | . . Scanalyzer . | . . Garrison Access Hacks . | . . Unauthorized Hacks . | . . Terminals . | . . Fabricators . | . . Repair Stations . | . . Recycling Units . | . . Scanalyzers . | . . Garrison Access . | . . Data Cores Recovered . | . . Used . | . . Hacking Detections 1 | . 1 Full Trace Events . | . . Feedback Events . | . . Feedback Blocked . | . . Robot Schematics Acquired . | . . Robots Built . | . . Matter . | . . Time . | . . Total Robot Build Rating . | . . Part Schematics Acquired . | . . Parts Built . | . . Matter . | . . Time . | . . Total Part Build Rating . | . . Parts Repaired . | . . Time . | . . Parts Recycled . | . . Recycled Matter . | . . Retrieved Matter . | . . Retrieved Components . | . . Parts Scanalyzed . | . . Part Schematics Acquired . | . . Parts Damaged . | . . Bothacking | -11 -10 ------------ Run | Scr Mat Used RIF Installer . | . . Robots Hacked . | . . Non-combat . | . . Combat . | . . Robot Hacks Applied . | . . Relay Couplers Released . | . . Robots Rewired . | . . Allies Hacked . | . . Hacks Repelled . | . . Allies | -11 -10 -------- Run | Scr Mat Total Allies . | . . Largest Group . | . . Highest-Rated Group . | . . Highest-Rated Ally . | . . Total Orders . | . . Ally Attacks . | . . Total Damage . | . . Kills . | . . Allies Corrupted . | . . Allies Melted . | . . Intel | -11 -10 ------- Run | Scr Mat Robot Analysis Total . | . . Derelict Logs Recovered . | . . Drone Launches . | . . Drone Recoveries . | . . Exploration | -11 -10 ------------- Run | Scr Mat Turns Passed 261 | . 261 Spaces Moved 64 | 1 63 Core . | . . Treads 14 | . 14 Legs 50 | 1 49 Wheels . | . . Hover . | . . Flight . | . . Fastest Speed 120 | 120 120 Average Speed 128 | 120 128 Slowest Speed 160 | 120 160 Overloaded Moves . | . . Propulsion Burnouts . | . . Robots Hopped . | . . Cave-ins Triggered . | . . Exploration Rate (%) 9 | 1 18 Regions Visited 1 Branch Regions . Pre-discovered Areas . | . . Known Exits Taken . | . . Unknown Exits Taken 1 | 1 . Scrap Searched . | . . Spaces Dug . | . . Terrain Destroyed . | . . Melee . | . . Projectile . | . . AOE . | . . Terrain Rammed . | . . Walls Destroyed . | . . Machines Disabled . | . . Actions | -11 -10 --------- Run | Scr Mat Total 147 | . 147 Wait 14 | . 14 Move 63 | . 63 Hop . | . . Pick Up 1 | . 1 Fast Attach . | . . Attach 4 | . 4 Detach . | . . Swap 1 | . 1 Drop . | . . Fire 54 | . 54 Melee . | . . Ram . | . . Kick . | . . Crush 10 | . 10 Escape Stasis . | . . Rewire . | . . Trap . | . . Miscellaneous . | . . Route ------- -11/Scrapyard -10/Materials (discovered 1 exit: [*Min]) History --------- Turn | Location | Event 1 | -11/Scrapyard | Discovered new exit (range 0) 1 | -11/Scrapyard | Entered Materials 54 | -10/Materials | Discovered new exit (range 16) 143 | -10/Materials | Core integrity fell below 50% 246 | -10/Materials | Core integrity fell below 20% 262 | -10/Materials | Destroyed by G-47 Trooper with Particle Gun Last Messages --------------- 00168_ Acquired Imp. Heat Sink. 00171_ W-16 Scout sends out distress signal. 00172_ K-01 Serf collects debris. 00173_ Acquired 13 matter. 00175_ K-01 Serf collects debris. 00191_ Assault Rifle destroyed. 00198_ G-34 Mercenary destroyed. 00205_ Slammed into G-34 Mercenary. 00206_ Acquired 20 matter. 00208_ Acquired 30 matter. 00211_ Assault Rifle destroyed. 00213_ Slammed into T-07 Excavator. 00231_ G-34 Mercenary destroyed. 00250_ Slammed into G-47 Trooper. 00253_ Acquired 50 matter. 00253_ Slammed into G-34 Mercenary. 00256_ Lgt. Treads destroyed. 00257_ Slammed into G-34 Mercenary. 00258_ Ion Engine destroyed. 00258_ Slammed into G-34 Mercenary. Map ----- +----------------------------------------------------+ | ??????????????????????????????????###### | | ??????????????????????????????##### # | | ??????????????????????????????# # # | | ??????????????????????????????# # # | | ???????????????????############ # # | | ?????????????????? + # | | ?????????????????? # # | | ?????????????????? # # | | ???????????????????############ # [# | | ??????????????????????????????# # # | | ??????????????????????????????# ###### | | ??????????????????????????????# # # | | ??????????????????????????????# + # | | ??????????????????????????????# # # | | ??????????????????????????????# # ""# | | ??????????????????????????????# # ""# | | ??????????????????????????????# # T"# | | ????????????????????########### # ""# | | ????????????????????# # # ""# | | ????????????????????# T + # # | | ????????????????????# # ###### | | ????????????????????# # #????? | | ????????????????????########### ##???? | | ?????????????????????????????# #???? | | ??????????#################### #???? | | ?????????## % *= g@= * g! #???? | | ?? = *![=##### #???? | | ??< """"" %==#???# #???? | | ?? """""%=!%#???#######???? | | ??? # """""""%*#?????????????? | | ??????# """""""[[#?????????????? | | ??????# """""""%*#?????????????? | | ??????# #?????????????? | | ??????? ?? #?????????????? | | ??????? ???"""""" #?????????????? | | ???????? ? ???????""" #?????????????? | | ????????? ???????????"" #?????????????? | | ??????????????????????" #?????????????? | | ??????????????????????" #?????????????? | | ?????????????????????? #?????????????? | | ?????????????????????? #?????????????? | | ??????????????????????" ??????????????? | | ??????????????????????? ??????????????? | | ???????????????????????????????????????? | | ???????????????????????????????????????? | | ???????????????????????????????????????? | | ???????????????????????????????????????? | | ???????????????????????????????????????? | | ???????????????????????????????????????? | | ???????????????????????????????????????? | +----------------------------------------------------+ Best States ------------- Heat Dissipation 39 Energy Generation 10 Energy Capacity 250 Matter Stores 252 Matter Capacity 300 Sight Range 16 Terrain Scan Density 10 Evasion (%) 40 Recoil Reduction 2 Item Schematics ----------------- None Robot Schematics ------------------ None Fabricated ------------ Nothing Alien Tech Used ----------------- None Achievements -------------- None Challenges ------------ None Game ------ Seed DynamicIonApparatus Manual? 0 Play Time 00:09:06 Cumulative 168.8 hours Start 2021.06.05 @ 18:46:30 End 2021.06.05 @ 19:13:32 Sessions 2 Manual Loads 0 Difficulty Rogue Special Mode None Game No. 109 Rogue 109 Adventurer 0 Explorer 0 Win Type - Total 6 Types 4/0/1/1/0/0/0/0/0 Lore% 70 Gallery% 66 Achievement% 51 Wizard Run 0 Options --------- ASCII 1 Keyboard 0 Movement Mouse Keybinds 0 Fullscreen 2 Font 18/SmallcapsGlow Map View 76x50 Tactical HUD 1 Map Filters NONE Filters NONE Steam 0 RUN: 9187f5ec-a283-4f4e-a289-5fc933791c3a